[Event "Polish Youth 1st League 2022"]
[Site "Lublin"]
[Date "2022.07.01"]
[Round "7.4"]
[White "Rozanski, Mateusz"]
[Black "Wajda, Krzysztof"]
[Result "0-1"]
[ECO "C47"]
[WhiteElo "1720"]
[BlackElo "1494"]
[Annotator "NA RC"]
[PlyCount "70"]
[EventDate "2022.06.24"]
[EventType "team-tourn"]
[EventCountry "POL"]
[SourceTitle "playchess.com"]
[Source "ChessBase"]
[SourceQuality "1"]
[TimeControl "40/5400+30:1800+30"]

1. e4 {[%emt 0:00:02]} e5 {[%emt 0:00:04]} 2. Nf3 {[%emt 0:00:04]} Nc6 {[%emt 0:00:05]} 3. Nc3 {[%emt 0:00:05]} Nf6 {[%emt 0:00:05]} 4. a3 {[%emt 0:00:05]} Bc5 {[%emt 0:01:32]} 5. Nxe5 {[%emt 0:00:06]} Nxe5 {[%emt 0:00:05]} 6. d4 {[%emt 0:00:05]} Bxd4 {[%emt 0:00:42]} 7. Qxd4 {[%emt 0:00:07]} d6 {[%emt 0:01:05]} 8. Bg5 {[%emt 0:01:06]} Nc6 {[%emt 0:09:51]} 9. Bb5 {[%emt 0:00:26]} Bd7 {[%emt 0:02:11]} 10. Bxc6 {[%emt 0:01:20]} Bxc6 {[%emt 0:00:20]} 11. O-O {[%emt 0:01:01]} h6 {[%emt 0:13:47]} 12. Bh4 {[%emt 0:00:12]} g5 {[%emt 0:06:34]} 13. Bg3 {[%emt 0:00:11]} O-O {[%emt 0:01:04]} 14. f4 {[%emt 0:00:57]} Nh5 {[%emt 0:06:21]} 15. fxg5 {[%emt 0:05:45]} Qxg5 {[%emt 0:05:01]} 16. Rf3 {[%emt 0:01:45]} f5 {[%emt 0:03:21]} 17. Qc4+ {[%emt 0:01:50]} Kh8 {[%emt 0:05:18]} 18. Bf2 {[%emt 0:03:21]} fxe4 {[%emt 0:21:14]} 19. Nxe4 {[%emt 0:02:19]} Qg6 {[%emt 0:02:58]} 20. Rxf8+ {[%emt 0:02:23]} Rxf8 {[%emt 0:00:08]} 21. Ng3 {[%emt 0:00:07]} Nf4 {[%emt 0:01:15]} 22. Bd4+ {[%emt 0:01:24]} Kh7 {[%emt 0:00:16]} 23. Rf1 {[%emt 0:00:18]} h5 {[%emt 0:05:51]} 24. Re1 {[%emt 0:04:50]} Rf7 {[%emt 0:03:00]} 25. Be3 {[%emt 0:14:09]} Nxg2 {[%emt 0:05:04]} 26. Re2 {[%emt 0:00:22]} Nxe3 {[%emt 0:03:12]} 27. Rxe3 {[%emt 0:00:06]} Qf6 {[%emt 0:01:02]} 28. Qe2 {[%emt 0:00:47]} Bf3 {[%emt 0:00:48]} 29. Qd3+ {[%emt 0:00:12]} Kg7 {[%emt 0:01:17]} 30. h3 {[%emt 0:02:30]} h4 {[%emt 0:00:26]} 31. Re8 {[%emt 0:02:16]} hxg3 {[%emt 0:00:12]} 32. Qe3 {[%emt 0:00:09]} Bh5 {[%emt 0:00:59]} 33. Qxg3+ {[%emt 0:00:14]} Qg6 {[%emt 0:00:25]} 34. Qxg6+ {[%emt 0:00:24]} Bxg6 {[%emt 0:00:03]} 35. c3 {[%emt 0:00:21]} Rf1+ {[%emt 0:00:25]} 0-1

[Event "Polish Youth 1st League 2022"]
[Site "Lublin"]
[Date "2022.07.01"]
[Round "7.5"]
[White "Czarnecka, Lidia"]
[Black "Krzyzosiak, Marta"]
[Result "1/2-1/2"]
[ECO "B81"]
[WhiteElo "1940"]
[BlackElo "1666"]
[Annotator "RC"]
[PlyCount "120"]
[EventDate "2022.06.24"]
[EventType "team-tourn"]
[EventCountry "POL"]
[SourceTitle "playchess.com"]
[Source "ChessBase"]
[SourceQuality "1"]
[TimeControl "40/5400+30:1800+30"]

1. e4 {[%emt 0:00:03]} c5 {[%emt 0:00:08]} 2. Nf3 {[%emt 0:00:56]} e6 {[%emt 0:00:10]} 3. d4 {[%emt 0:01:44]} cxd4 {[%emt 0:00:10]} 4. Nxd4 {[%emt 0:00:11]} Nf6 {[%emt 0:00:11]} 5. Nc3 {[%emt 0:00:25]} d6 {[%emt 0:00:16]} 6. g4 {[%emt 0:02:00]} e5 {[%emt 0:00:16]} 7. Nf5 {[%emt 0:06:51]} h5 {[%emt 0:01:05]} 8. g5 {[%emt 0:08:51]} Nxe4 {[%emt 0:00:32]} 9. Nxg7+ {[%emt 0:00:21]} Bxg7 {[%emt 0:00:10]} 10. Nxe4 {[%emt 0:00:05]} d5 {[%emt 0:00:44]} 11. Ng3 {[%emt 0:02:06]} Nc6 {[%emt 0:00:36]} 12. Bg2 {[%emt 0:02:14]} Nd4 {[%emt 0:13:12]} 13. c3 {[%emt 0:03:43]} h4 {[%emt 0:09:49]} 14. cxd4 {[%emt 0:01:08]} hxg3 {[%emt 0:00:09]} 15. fxg3 {[%emt 0:00:07]} e4 {[%emt 0:06:47]} 16. Be3 {[%emt 0:02:23]} Qb6 {[%emt 0:03:29]} 17. Qd2 {[%emt 0:03:06]} Bd7 {[%emt 0:05:20]} 18. O-O {[%emt 0:07:58]} Rc8 {[%emt 0:17:21]} 19. Rac1 {[%emt 0:02:06]} O-O {[%emt 0:06:15]} 20. b3 {[%emt 0:03:41]} a5 {[%emt 0:14:54]} 21. Rfd1 {[%emt 0:03:18]} a4 {[%emt 0:03:15]} 22. b4 {[%emt 0:01:52]} Bg4 {[%emt 0:02:04]} 23. Re1 {[%emt 0:01:07]} Bd7 {[%emt 0:02:10]} 24. Rc5 {[%emt 0:03:38]} Rxc5 {[%emt 0:01:25]} 25. bxc5 {[%emt 0:02:21]} Qe6 {[%emt 0:01:53]} 26. Qb4 {[%emt 0:04:30]} Bc6 {[%emt 0:02:12]} 27. Bf1 {[%emt 0:03:53]} f6 {[%emt 0:03:30]} 28. gxf6 {[%emt 0:02:38]} Rxf6 {[%emt 0:00:32]} 29. Be2 {[%emt 0:02:10]} Qh3 {[%emt 0:01:22]} 30. Rf1 {[%emt 0:05:30]} Rg6 {[%emt 0:00:09]} 31. Bf4 {[%emt 0:00:10]} Bh6 {[%emt 0:01:51]} 32. Qd2 {[%emt 0:01:00]} Bg7 {[%emt 0:01:13]} 33. Qe3 {[%emt 0:00:36]} Bd7 {[%emt 0:01:37]} 34. Rb1 {[%emt 0:02:14]} Bc6 {[%emt 0:00:24]} 35. Bf1 {[%emt 0:02:12]} Qf5 {[%emt 0:00:35]} 36. Rd1 {[%emt 0:02:29]} Qg4 {[%emt 0:00:33]} 37. Be2 {[%emt 0:00:09]} Qh3 {[%emt 0:00:07]} 38. Rf1 {[%emt 0:00:53]} Bd7 {[%emt 0:00:12]} 39. a3 {[%emt 0:05:34]} Bc6 {[%emt 0:01:28]} 40. Kh1 {[%emt 0:00:00]} Bd7 {[%emt 0:00:00]} 41. Rb1 {[%emt 0:12:43]} Bc6 {[%emt 0:05:21]} 42. g4 {[%emt 0:06:09]} Qh8 {[%emt 0:05:24]} 43. Rd1 {[%emt 0:00:26]} Bd7 {[%emt 0:00:25]} 44. g5 {[%emt 0:00:20]} b6 {[%emt 0:04:47]} 45. Bd6 {[%emt 0:05:59]} bxc5 {[%emt 0:04:22]} 46. Bxc5 {[%emt 0:00:10]} Qh4 {[%emt 0:01:44]} 47. Rg1 {[%emt 0:00:14]} Rc6 {[%emt 0:03:33]} 48. Bb4 {[%emt 0:02:39]} Qh8 {[%emt 0:01:54]} 49. Rd1 {[%emt 0:01:16]} Rc2 {[%emt 0:03:28]} 50. Bc5 Bg4 {[%emt 0:01:15]} 51. Rd2 {[%emt 0:03:03]} Rxd2 {[%emt 0:00:37]} 52. Qxd2 {[%emt 0:00:04]} Bxe2 {[%emt 0:00:06]} 53. Qxe2 {[%emt 0:00:03]} Bxd4 {[%emt 0:00:12]} 54. Bd6 {[%emt 0:01:53]} Qh4 {[%emt 0:02:31]} 55. Be7 {[%emt 0:03:26]} Qf4 {[%emt 0:00:40]} 56. Kg2 {[%emt 0:00:23]} Qe3 {[%emt 0:02:16]} 57. Qg4 {[%emt 0:02:55]} Qf2+ {[%emt 0:00:55]} 58. Kh3 {[%emt 0:00:11]} Qf1+ {[%emt 0:00:15]} 59. Kh4 {[%emt 0:00:16]} Qf2+ {[%emt 0:00:28]} 60. Kh3 {[%emt 0:00:05]} Qf1+ {[%emt 0:00:35]} 1/2-1/2

[Event "Polish Youth 1st League 2022"]
[Site "Lublin"]
[Date "2022.07.01"]
[Round "7.6"]
[White "Wieczorek, Maja"]
[Black "Slusarczyk, Anna"]
[Result "1-0"]
[ECO "B28"]
[WhiteElo "1316"]
[BlackElo "1544"]
[Annotator "NA RC"]
[PlyCount "111"]
[EventDate "2022.06.24"]
[EventType "team-tourn"]
[EventCountry "POL"]
[SourceTitle "playchess.com"]
[Source "ChessBase"]
[SourceQuality "1"]
[TimeControl "40/5400+30:1800+30"]

1. e4 {[%emt 0:00:03]} c5 {[%emt 0:00:02]} 2. Nf3 {[%emt 0:00:06]} a6 {[%emt 0:00:04]} 3. b3 {[%emt 0:00:10]} e6 {[%emt 0:01:10]} 4. Bb2 {[%emt 0:00:12]} d6 {[%emt 0:01:30]} 5. Bd3 {[%emt 0:04:35]} Nf6 {[%emt 0:03:21]} 6. e5 {[%emt 0:00:23]} Nd5 {[%emt 0:02:37]} 7. exd6 {[%emt 0:04:56]} Nc6 {[%emt 0:10:14]} 8. O-O {[%emt 0:02:48]} Nf6 {[%emt 0:32:06]} 9. a3 {[%emt 0:08:40]} Bxd6 {[%emt 0:01:46]} 10. Re1 {[%emt 0:00:48]} Qc7 {[%emt 0:05:33]} 11. h3 {[%emt 0:11:32]} b6 {[%emt 0:03:14]} 12. Ng5 {[%emt 0:03:18]} Ne5 {[%emt 0:15:09]} 13. Ne4 {[%emt 0:06:23]} Nxd3 {[%emt 0:00:46]} 14. cxd3 {[%emt 0:00:43]} Bb7 {[%emt 0:03:33]} 15. Qe2 {[%emt 0:13:10]} Ke7 {[%emt 0:09:52]} 16. Qf3 {[%emt 0:06:08]} Be5 {[%emt 0:05:00]} 17. Bxe5 {[%emt 0:01:29]} Qxe5 {[%emt 0:00:05]} 18. Nbc3 {[%emt 0:00:15]} Rad8 {[%emt 0:00:37]} 19. Rad1 {[%emt 0:13:02]} Qd4 {[%emt 0:01:48]} 20. Qg3 {[%emt 0:01:48]} Qxd3 {[%emt 0:01:10]} 21. Re3 {[%emt 0:04:27]} Qd4 {[%emt 0:00:25]} 22. Nxf6 {[%emt 0:00:40]} gxf6 {[%emt 0:00:13]} 23. Qc7+ {[%emt 0:00:22]} Rd7 {[%emt 0:00:38]} 24. Qxb6 {[%emt 0:02:30]} Rg8 {[%emt 0:00:05]} 25. g3 {[%emt 0:02:26]} f5 {[%emt 0:00:18]} 26. Ne2 {[%emt 0:04:02]} Qd5 {[%emt 0:00:51]} 27. f3 {[%emt 0:01:00]} f4 {[%emt 0:00:32]} 28. Nxf4 {[%emt 0:01:58]} Rxg3+ {[%emt 0:00:06]} 29. Kh2 {[%emt 0:01:12]} Qg5 {[%emt 0:00:15]} 30. Nxe6 {[%emt 0:02:30]} fxe6 {[%emt 0:01:27]} 31. Qxe6+ {[%emt 0:00:23]} Kd8 {[%emt 0:00:52]} 32. Qb6+ {[%emt 0:00:40]} Rc7 {[%emt 0:00:28]} 33. Qd6+ {[%emt 0:00:15]} Rd7 {[%emt 0:00:08]} 34. Qxg3 {[%emt 0:00:19]} Qf6 {[%emt 0:00:59]} 35. Rde1 {[%emt 0:01:05]} Kc8 {[%emt 0:00:34]} 36. Re8+ {[%emt 0:00:50]} Rd8 {[%emt 0:00:03]} 37. Qg4+ {[%emt 0:01:55]} Kb8 {[%emt 0:00:13]} 38. Rxd8+ {[%emt 0:00:58]} Qxd8 {[%emt 0:00:05]} 39. Qf4+ {[%emt 0:00:12]} Ka7 {[%emt 0:01:02]} 40. Re2 {[%emt 0:00:00]} Qd5 {[%emt 0:00:00]} 41. Re8 {[%emt 0:07:50]} Qxb3 {[%emt 0:02:30]} 42. Qb8+ {[%emt 0:00:31]} Kb6 {[%emt 0:00:09]} 43. Qd6+ {[%emt 0:00:19]} Kb5 {[%emt 0:01:16]} 44. Re3 {[%emt 0:10:15]} Qc4 {[%emt 0:05:08]} 45. Qd3 {[%emt 0:01:50]} Qxd3 {[%emt 0:07:51]} 46. Rxd3 {[%emt 0:00:07]} Bc8 {[%emt 0:00:22]} 47. Rc3 {[%emt 0:00:39]} Bf5 {[%emt 0:00:51]} 48. Kg3 {[%emt 0:00:27]} c4 {[%emt 0:02:23]} 49. h4 {[%emt 0:00:30]} Bd3 {[%emt 0:00:39]} 50. Kf4 {[%emt 0:00:58]} Kc6 {[%emt 0:00:36]} 51. Ke5 {[%emt 0:00:34]} Kd7 {[%emt 0:00:49]} 52. f4 {[%emt 0:00:29]} Ke7 {[%emt 0:00:09]} 53. f5 {[%emt 0:02:25]} Kf7 {[%emt 0:01:02]} 54. f6 {[%emt 0:05:35]} h5 {[%emt 0:00:54]} 55. Rxd3 {[%emt 0:01:26]} cxd3 {[%emt 0:00:10]} 56. Kf5 {[%emt 0:00:09]} 1-0

[Event "Polish Youth 1st League 2022"]
[Site "Lublin"]
[Date "2022.07.01"]
[Round "7.7"]
[White "Panek, Bartosz"]
[Black "Jedraszek, Pawel"]
[Result "1/2-1/2"]
[ECO "A05"]
[WhiteElo "2022"]
[BlackElo "1933"]
[Annotator "NA RC"]
[PlyCount "101"]
[EventDate "2022.06.24"]
[EventType "team-tourn"]
[EventCountry "POL"]
[SourceTitle "playchess.com"]
[Source "ChessBase"]
[SourceQuality "1"]
[TimeControl "40/5400+30:1800+30"]

1. Nf3 {[%emt 0:00:05]} Nf6 {[%emt 0:00:07]} 2. g3 {[%emt 0:00:05]} g6 {[%emt 0:00:28]} 3. Bg2 {[%emt 0:00:06]} Bg7 {[%emt 0:00:05]} 4. O-O {[%emt 0:00:07]} O-O {[%emt 0:00:18]} 5. d4 {[%emt 0:00:05]} d6 {[%emt 0:01:42]} 6. Re1 {[%emt 0:00:06]} Nbd7 {[%emt 0:05:39]} 7. e4 {[%emt 0:00:09]} e5 {[%emt 0:00:14]} 8. a4 {[%emt 0:00:05]} Re8 {[%emt 0:03:07]} 9. d5 {[%emt 0:04:52]} Nc5 {[%emt 0:02:08]} 10. Nfd2 {[%emt 0:06:29]} a5 {[%emt 0:00:41]} 11. Nc4 {[%emt 0:00:05]} b6 {[%emt 0:01:51]} 12. c3 {[%emt 0:11:21]} Bd7 {[%emt 0:02:39]} 13. b3 {[%emt 0:03:31]} Qe7 {[%emt 0:05:39]} 14. Nb2 {[%emt 0:02:56]} Ng4 {[%emt 0:08:21]} 15. f3 {[%emt 0:05:08]} Nh6 {[%emt 0:00:35]} 16. b4 {[%emt 0:00:17]} Nb7 {[%emt 0:01:14]} 17. Be3 {[%emt 0:02:29]} f5 {[%emt 0:01:04]} 18. Qd2 {[%emt 0:00:05]} Nf7 {[%emt 0:06:06]} 19. Na3 {[%emt 0:02:03]} f4 {[%emt 0:05:57]} 20. gxf4 {[%emt 0:12:45]} exf4 {[%emt 0:00:21]} 21. Bxf4 {[%emt 0:00:41]} Qf6 {[%emt 0:01:18]} 22. Nac4 {[%emt 0:00:33]} Qxc3 {[%emt 0:01:35]} 23. b5 {[%emt 0:00:04]} Nc5 {[%emt 0:03:16]} 24. Ra3 {[%emt 0:01:52]} Qf6 {[%emt 0:01:49]} 25. Be3 {[%emt 0:01:30]} Rad8 {[%emt 0:07:21]} 26. Kh1 {[%emt 0:04:29]} Qh4 {[%emt 0:02:42]} 27. Bf2 {[%emt 0:01:47]} Qh5 {[%emt 0:04:20]} 28. Nd3 {[%emt 0:01:17]} Bc8 {[%emt 0:15:41]} 29. Nxc5 {[%emt 0:01:42]} dxc5 {[%emt 0:00:09]} 30. Bg3 {[%emt 0:01:29]} Re7 {[%emt 0:03:33]} 31. Rd3 {[%emt 0:03:56]} Ne5 {[%emt 0:02:13]} 32. Nxe5 {[%emt 0:02:54]} Bxe5 {[%emt 0:00:03]} 33. f4 {[%emt 0:01:58]} Bg7 {[%emt 0:00:45]} (33... Bf6 $142 34. e5 Bh4) 34. d6 {[%emt 0:01:09]} cxd6 {[%emt 0:00:58]} 35. Rxd6 {[%emt 0:00:06]} Red7 {[%emt 0:04:09]} 36. Qa2+ {[%emt 0:02:21]} Kh8 {[%emt 0:00:13]} 37. Rxd7 {[%emt 0:00:04]} Bxd7 {[%emt 0:00:57]} 38. Qf7 {[%emt 0:02:53]} Bh3 {[%emt 0:02:00]} 39. Bxh3 $16 {[%emt 0:07:26]} Qxh3 {[%emt 0:00:10]} 40. Qc7 {[%emt 0:00:00]} Rf8 {[%emt 0:00:00]} 41. Qxb6 {[%emt 0:04:06]} Rxf4 {[%emt 0:06:19]} 42. Qxc5 {[%emt 0:00:04]} Rf1+ {[%emt 0:00:47]} 43. Rxf1 {[%emt 0:00:15]} Qxf1+ {[%emt 0:00:02]} 44. Qg1 {[%emt 0:00:07]} Qf3+ {[%emt 0:00:07]} 45. Qg2 {[%emt 0:00:04]} Qd1+ {[%emt 0:00:07]} 46. Qg1 {[%emt 0:00:09]} Qf3+ {[%emt 0:00:49]} 47. Qg2 {[%emt 0:00:06]} Qd1+ {[%emt 0:00:05]} 48. Qg1 {[%emt 0:00:02]} Qf3+ {[%emt 0:00:10]} 49. Qg2 {[%emt 0:00:05]} Qd1+ {[%emt 0:00:09]} 50. Qg1 {[%emt 0:00:04]} Qf3+ {[%emt 0:00:16]} 51. Qg2 {[%emt 0:00:10]} 1/2-1/2

[Event "Polish Youth 1st League 2022"]
[Site "Lublin"]
[Date "2022.07.01"]
[Round "7.8"]
[White "Klaska, Szymon"]
[Black "Kubik, Rafal"]
[Result "0-1"]
[ECO "A10"]
[WhiteElo "1563"]
[BlackElo "1827"]
[Annotator "NA RC"]
[PlyCount "88"]
[EventDate "2022.06.24"]
[EventType "team-tourn"]
[EventCountry "POL"]
[SourceTitle "playchess.com"]
[Source "ChessBase"]
[SourceQuality "1"]
[TimeControl "40/5400+30:1800+30"]

1. c4 b6 2. Nc3 Bb7 3. d4 e6 4. Nf3 f5 5. Bf4 Nf6 6. e3 Bb4 7. Bd3 O-O 8. O-O Bxc3 9. bxc3 d6 10. Re1 Nbd7 11. Bg5 Qe8 12. Bxf6 Nxf6 13. Nd2 Ne4 14. Qc2 Nxd2 15. Qxd2 Qg6 16. Bf1 Rf6 (16... Rad8 $15) 17. d5 Kh8 18. Rab1 Qf7 19. Red1 Rf8 20. f4 Re8 21. Rb3 Qe7 22. Re1 Rf7 23. g3 Qf6 24. Bg2 Rfe7 25. Kf2 a5 26. a3 Ba6 27. Bf1 g5 28. Rbb1 Bb7 29. Bg2 h5 30. Qe2 Rh7 31. Qd3 e5 32. e4 $19 (32. Re2 $17 {was called for.}) 32... gxf4 33. exf5 fxg3+ 34. hxg3 Bc8 35. Be4 {[#]} Rf7 $2 (35... Bxf5 $1 $19 {[%mdl 512]} 36. Bxf5 Rf8) 36. Kg1 Qg5 ({Weaker is} 36... Bxf5 37. Rf1 Bxe4 38. Qxe4 $15) 37. Rf1 Ref8 38. Rb2 Bxf5 39. Rbf2 Bxe4 40. Rxf7 Rxf7 41. Qxe4 Qxg3+ 42. Qg2 Qxg2+ 43. Kxg2 Rxf1 44. Kxf1 Kg7 0-1

[Event "Polish Youth 1st League 2022"]
[Site "Lublin"]
[Date "2022.07.01"]
[Round "7.9"]
[White "Karwot, Marek"]
[Black "Ugorek, Kacper"]
[Result "0-1"]
[ECO "B40"]
[WhiteElo "1454"]
[BlackElo "1696"]
[Annotator "NA RC"]
[PlyCount "112"]
[EventDate "2022.06.24"]
[EventType "team-tourn"]
[EventCountry "POL"]
[SourceTitle "playchess.com"]
[Source "ChessBase"]
[SourceQuality "1"]
[TimeControl "40/5400+30:1800+30"]

1. e4 {[%emt 0:00:21]} c5 {[%emt 0:00:05]} 2. Nf3 {[%emt 0:00:13]} e6 {[%emt 0:00:05]} 3. g3 {[%emt 0:02:19]} Nc6 {[%emt 0:00:23]} 4. Bg2 {[%emt 0:01:04]} Nf6 {[%emt 0:00:15]} 5. Nc3 {[%emt 0:01:10]} Be7 {[%emt 0:09:54]} 6. O-O {[%emt 0:04:14]} e5 {[%emt 0:01:57]} 7. d3 {[%emt 0:05:18]} O-O {[%emt 0:01:10]} 8. h3 {[%emt 0:06:08]} d6 {[%emt 0:00:49]} 9. Kh2 {[%emt 0:03:06]} h6 {[%emt 0:01:05]} 10. Ng1 {[%emt 0:02:52]} Nd4 {[%emt 0:18:08]} 11. Nge2 {[%emt 0:09:00]} Bd7 {[%emt 0:09:46]} 12. f4 {[%emt 0:12:22]} b5 {[%emt 0:09:18]} 13. Nxd4 {[%emt 0:05:24]} cxd4 {[%emt 0:00:22]} 14. Ne2 {[%emt 0:02:15]} Ne8 {[%emt 0:03:44]} 15. f5 {[%emt 0:07:43]} Bg5 {[%emt 0:01:07]} 16. h4 {[%emt 0:05:53]} Bxc1 {[%emt 0:00:12]} 17. Rxc1 {[%emt 0:00:39]} Rc8 {[%emt 0:06:06]} 18. Qe1 {[%emt 0:06:28]} Nf6 {[%emt 0:01:53]} 19. Bf3 {[%emt 0:02:52]} d5 {[%emt 0:01:30]} 20. g4 {[%emt 0:03:52]} dxe4 {[%emt 0:00:01]} 21. dxe4 {[%emt 0:00:22]} Nh7 {[%emt 0:06:37]} 22. Qg3 {[%emt 0:04:26]} Qe7 {[%emt 0:01:33]} 23. Rg1 {[%emt 0:01:35]} f6 {[%emt 0:00:13]} 24. Rgd1 {[%emt 0:00:50]} b4 {[%emt 0:02:15]} 25. c3 {[%emt 0:02:04]} bxc3 {[%emt 0:00:30]} 26. bxc3 {[%emt 0:00:09]} Ba4 {[%emt 0:00:44]} 27. Rd2 {[%emt 0:01:27]} dxc3 {[%emt 0:06:28]} 28. Rxc3 {[%emt 0:01:41]} Qb4 {[%emt 0:02:05]} 29. Bg2 {[%emt 0:02:00]} Rfd8 {[%emt 0:01:36]} 30. Rd5 {[%emt 0:03:03]} Qe7 {[%emt 0:08:23]} 31. Qd3 {[%emt 0:01:11]} Be8 {[%emt 0:00:54]} 32. Rxc8 {[%emt 0:01:56]} Rxc8 {[%emt 0:00:00]} 33. Nc3 {[%emt 0:00:47]} Bf7 {[%emt 0:00:33]} 34. Ra5 {[%emt 0:01:14]} Qb4 {[%emt 0:02:12]} 35. Nd5 {[%emt 0:00:42]} Qxa5 {[%emt 0:01:01]} 36. Ne7+ {[%emt 0:00:20]} Kh8 {[%emt 0:00:50]} 37. Nxc8 {[%emt 0:00:18]} Qc7 {[%emt 0:00:56]} 38. Qa6 {[%emt 0:01:08]} Bc4 {[%emt 0:00:41]} 39. Qa4 {[%emt 0:00:58]} Qxc8 {[%emt 0:00:13]} 40. Qxa7 {[%emt 0:00:00]} Nf8 {[%emt 0:00:00]} 41. Qe7 {[%emt 0:03:18]} Bxa2 {[%emt 0:01:46]} 42. g5 {[%emt 0:01:01]} hxg5 {[%emt 0:00:28]} 43. hxg5 {[%emt 0:01:09]} Nh7 {[%emt 0:00:21]} 44. gxf6 {[%emt 0:04:23]} Nxf6 {[%emt 0:00:14]} 45. Bf3 {[%emt 0:01:52]} Qc3 {[%emt 0:00:40]} 46. Kg2 {[%emt 0:02:10]} Bc4 {[%emt 0:00:34]} 47. Qd8+ {[%emt 0:08:55]} Kh7 {[%emt 0:00:26]} 48. Qd1 {[%emt 0:00:27]} Qe3 {[%emt 0:00:35]} 49. Qh1+ {[%emt 0:01:13]} Qh6 {[%emt 0:00:08]} 50. Qa1 {[%emt 0:00:30]} Qg5+ {[%emt 0:00:07]} 51. Kf2 {[%emt 0:00:30]} Qd2+ {[%emt 0:00:23]} 52. Kg3 {[%emt 0:00:21]} Qf4+ {[%emt 0:00:05]} 53. Kg2 {[%emt 0:00:18]} Nxe4 {[%emt 0:00:43]} 54. Bxe4 {[%emt 0:01:41]} Qxe4+ {[%emt 0:00:17]} 55. Kg3 {[%emt 0:00:15]} Qf4+ {[%emt 0:00:07]} 56. Kg2 {[%emt 0:00:12]} Bd5+ {[%emt 0:00:04]} 0-1

[Event "Polish Youth 1st League 2022"]
[Site "Lublin"]
[Date "2022.07.01"]
[Round "7.10"]
[White "Dobosiewicz, Dawid"]
[Black "Niesporek, Franciszek"]
[Result "0-1"]
[ECO "B50"]
[WhiteElo "1795"]
[BlackElo "1332"]
[Annotator "NA RC"]
[PlyCount "144"]
[EventDate "2022.06.24"]
[EventType "team-tourn"]
[EventCountry "POL"]
[SourceTitle "playchess.com"]
[Source "ChessBase"]
[SourceQuality "1"]
[TimeControl "40/5400+30:1800+30"]

1. e4 {[%emt 0:00:02]} c5 {[%emt 0:00:13]} 2. Nf3 {[%emt 0:00:05]} d6 {[%emt 0:00:14]} 3. c3 {[%emt 0:00:05]} Nf6 {[%emt 0:00:11]} 4. h3 {[%emt 0:00:04]} Nc6 {[%emt 0:01:40]} 5. Bd3 {[%emt 0:00:10]} e5 {[%emt 0:00:08]} 6. O-O {[%emt 0:00:39]} g5 {[%emt 0:00:21]} 7. Nh2 {[%emt 0:18:16]} h5 {[%emt 0:11:28]} 8. g4 {[%emt 0:08:17]} hxg4 {[%emt 0:00:33]} 9. hxg4 {[%emt 0:00:11]} Be6 {[%emt 0:08:59]} 10. f3 {[%emt 0:04:04]} Qd7 {[%emt 0:02:00]} 11. c4 {[%emt 0:00:53]} Be7 {[%emt 0:16:59]} 12. Nc3 {[%emt 0:00:20]} O-O-O {[%emt 0:01:11]} 13. Nd5 {[%emt 0:02:09]} Rh4 {[%emt 0:01:55]} 14. Rf2 {[%emt 0:02:03]} Rdh8 {[%emt 0:01:31]} 15. a3 {[%emt 0:02:00]} Nd4 {[%emt 0:01:21]} 16. Nxf6 {[%emt 0:02:24]} Bxf6 {[%emt 0:00:10]} 17. b4 {[%emt 0:00:30]} Bd8 {[%emt 0:05:32]} 18. b5 {[%emt 0:02:59]} f6 {[%emt 0:00:47]} 19. Rg2 {[%emt 0:03:53]} Qh7 {[%emt 0:01:36]} 20. Nf1 {[%emt 0:01:14]} Rh3 {[%emt 0:05:03]} 21. Kf2 {[%emt 0:05:00]} Rxf3+ {[%emt 0:01:06]} 22. Qxf3 {[%emt 0:00:04]} Nxf3 {[%emt 0:00:07]} 23. Kxf3 {[%emt 0:00:02]} Qh3+ {[%emt 0:00:56]} 24. Rg3 {[%emt 0:00:11]} Bxg4+ {[%emt 0:00:44]} 25. Kf2 {[%emt 0:00:18]} Qh4 {[%emt 0:00:54]} 26. Bb2 {[%emt 0:07:06]} Bh3 {[%emt 0:01:19]} 27. Bc3 {[%emt 0:01:55]} Be6 {[%emt 0:05:27]} 28. Ne3 {[%emt 0:04:06]} Qh2+ {[%emt 0:04:37]} 29. Rg2 {[%emt 0:01:55]} Qf4+ {[%emt 0:00:29]} 30. Kg1 {[%emt 0:00:41]} Qh4 {[%emt 0:03:28]} 31. Nf1 {[%emt 0:04:30]} Bh3 {[%emt 0:03:28]} 32. Rh2 {[%emt 0:02:01]} Qg4+ {[%emt 0:00:07]} 33. Kf2 {[%emt 0:00:35]} Qf4+ {[%emt 0:00:14]} 34. Kg1 {[%emt 0:00:14]} g4 {[%emt 0:01:03]} 35. Rf2 {[%emt 0:00:23]} Qg5 {[%emt 0:00:18]} 36. Ng3 {[%emt 0:00:32]} Be7 {[%emt 0:05:43]} 37. Rf5 {[%emt 0:00:07]} Qh4 {[%emt 0:03:56]} 38. Kf2 {[%emt 0:00:04]} Bg2 {[%emt 0:01:21]} 39. Rg1 {[%emt 0:01:09]} Bf3 {[%emt 0:01:07]} 40. Rxf3 {[%emt 0:00:00]} gxf3 {[%emt 0:00:00]} 41. Rh1 {[%emt 0:00:18]} Qxh1 {[%emt 0:02:36]} 42. Nxh1 {[%emt 0:00:03]} Rxh1 {[%emt 0:00:09]} 43. Kxf3 {[%emt 0:00:04]} Rh3+ {[%emt 0:00:52]} 44. Ke2 {[%emt 0:00:09]} Bf8 {[%emt 0:00:58]} 45. Bc2 {[%emt 0:00:36]} Bh6 {[%emt 0:01:27]} 46. Ba4 {[%emt 0:02:42]} Rh2+ {[%emt 0:05:16]} 47. Kd3 {[%emt 0:00:18]} b6 {[%emt 0:00:18]} 48. Bd1 {[%emt 0:00:08]} Bf4 {[%emt 0:06:47]} 49. Bg4+ {[%emt 0:00:12]} Kc7 {[%emt 0:01:16]} 50. Be6 {[%emt 0:00:13]} Bg3 {[%emt 0:01:27]} 51. a4 {[%emt 0:01:14]} Bf2 {[%emt 0:01:27]} 52. a5 {[%emt 0:00:03]} Bd4 {[%emt 0:00:55]} 53. a6 {[%emt 0:01:40]} Bxc3 {[%emt 0:02:48]} 54. Kxc3 {[%emt 0:00:18]} Kd8 {[%emt 0:00:27]} 55. Kd3 {[%emt 0:00:05]} Ke7 {[%emt 0:00:38]} 56. Bf5 {[%emt 0:00:17]} Kf7 {[%emt 0:00:48]} 57. Ke3 {[%emt 0:00:19]} Kg7 {[%emt 0:00:21]} 58. d3 {[%emt 0:00:41]} Kh6 {[%emt 0:00:14]} 59. Kf3 {[%emt 0:00:09]} Kg5 {[%emt 0:00:17]} 60. Be6 {[%emt 0:00:09]} Rh4 {[%emt 0:02:24]} 61. Bd7 {[%emt 0:01:17]} Rf4+ {[%emt 0:02:05]} 62. Ke3 {[%emt 0:00:20]} Kh4 {[%emt 0:00:59]} 63. Be8 {[%emt 0:00:24]} Kg4 {[%emt 0:02:17]} 64. Ke2 {[%emt 0:01:17]} Kg3 {[%emt 0:00:52]} 65. Bh5 {[%emt 0:00:19]} Rh4 {[%emt 0:00:29]} 66. Bf7 {[%emt 0:00:23]} Kf4 {[%emt 0:00:13]} 67. Kd2 {[%emt 0:00:56]} Rh2+ {[%emt 0:00:12]} 68. Kc3 {[%emt 0:00:16]} Ke3 {[%emt 0:00:07]} 69. Bg6 {[%emt 0:01:09]} Rd2 {[%emt 0:00:14]} 70. Kb3 {[%emt 0:00:05]} Rxd3+ {[%emt 0:00:09]} 71. Ka4 {[%emt 0:00:03]} Rd4 {[%emt 0:00:11]} 72. Kb3 {[%emt 0:00:10]} Rxe4 {[%emt 0:00:14]} 0-1